fUST/lending_fUST_20240303
["ID","MTS","AMOUNT","RATE_DAILY","PERIOD"]
[316406401,1709470241827,-500.0,0.00023999,2]
[316406403,1709470241836,-485.07,0.00023999,2]
[316406405,1709470241845,-300.2752997,0.00023999,2]
[316406407,1709470241854,-500.0,0.00023999,2]
[316406409,1709470241863,-500.0,0.00023999,2]
[316406411,1709470241872,-375.80095581,0.00023999,2]
[316406413,1709470241881,-475.44,0.00023999,2]
[316406415,1709470241890,-1736.42,0.00023999,2]
[316406417,1709470241899,-1736.42,0.00023999,2]
[316406419,1709470241908,-1736.42,0.00023999,2]
[316406421,1709470241918,-1736.42,0.00023999,2]
[316406423,1709470241927,-1736.42,0.00023999,2]
[316406425,1709470241936,-1736.42,0.00023999,2]
[316406426,1709470241945,-1736.42,0.00023999,2]
[316406427,1709470241954,-1736.42,0.00023999,2]
[316406428,1709470241963,-1736.42,0.00023999,2]
[316406429,1709470241972,-1736.42,0.00023999,2]
[316406430,1709470241981,-1736.42,0.00023999,2]
[316406431,1709470241990,-1736.42,0.00023999,2]
[316406432,1709470241999,-1736.42,0.00023999,2]
[316406433,1709470242008,-1736.42,0.00023999,2]
[316406434,1709470242016,-1736.42,0.00023999,2]
[316406435,1709470242027,-1736.42,0.00023999,2]
[316406436,1709470242036,-1736.42,0.00023999,2]
[316406437,1709470242045,-1736.42,0.00023999,2]
[316406438,1709470242055,-1736.42,0.00023999,2]
[316406439,1709470242064,-1736.42,0.00023999,2]
[316406440,1709470242073,-1736.57921372,0.00023999,2]
[316406441,1709470242082,-500.0,0.00023999,2]
[316406442,1709470242091,-500.0,0.00023999,2]
[316406443,1709470242099,-500.0,0.00023999,2]
[316406444,1709470242109,-500.0,0.00023999,2]
[316406445,1709470242118,-500.0,0.00023999,2]
[316406446,1709470242127,-500.0,0.00023999,2]
[316406447,1709470242136,-500.0,0.00023999,2]
[316406448,1709470242144,-333.5,0.00023999,2]
[316406449,1709470242153,-500.0,0.00023999,2]
[316406450,1709470242162,-500.0,0.00023999,2]
[316406451,1709470242171,-366.06432252,0.00023999,2]
[316406452,1709470242180,-692.43,0.00023999,2]
[316406453,1709470242188,-692.43,0.00023999,2]
[316406454,1709470242198,-692.43,0.00023999,2]
[316406455,1709470242206,-692.43,0.00023999,2]
[316406456,1709470242215,-692.43,0.00023999,2]
[316406457,1709470242224,-692.43,0.00023999,2]
[316406458,1709470242232,-692.43,0.00023999,2]
[316406459,1709470242242,-692.43,0.00023999,2]
[316406460,1709470242250,-692.43,0.00023999,2]
[316406461,1709470242259,-692.43,0.00023999,2]
[316406463,1709470242269,-692.43,0.00023999,2]
[316406464,1709470242278,-692.43,0.00023999,2]
[316406466,1709470242287,-692.43,0.00023999,2]
[316406468,1709470242296,-692.63276103,0.00023999,2]
[316406470,1709470242306,-369.28776619,0.00023999,2]
[316406472,1709470242315,-500.0,0.00023999,2]
[316406474,1709470242324,-500.0,0.00023999,2]
[316406476,1709470242334,-500.0,0.00023999,2]
[316406478,1709470242343,-500.0,0.00023999,2]
[316406480,1709470242352,-500.0,0.00023999,2]
[316406482,1709470242361,-617.95024596,0.00023999,2]
[316406484,1709470242370,-500.0,0.00023999,2]
[316406486,1709470242380,-500.0,0.00023999,2]
[316406488,1709470242389,-500.0,0.00023999,2]
[316406490,1709470242398,-500.0,0.00023999,2]
[316406492,1709470242407,-500.0,0.00023999,2]
[316406494,1709470242416,-382.08,0.00023999,2]
[316406496,1709470242426,-509.40114326,0.00023999,2]
[316406498,1709470242435,-843.47,0.00023999,2]
[316406500,1709470242445,-843.47,0.00023999,2]
[316406502,1709470242454,-843.47,0.00023999,2]
[316406504,1709470242463,-843.47,0.00023999,2]
[316406513,1709470242548,-843.47,0.00023999,2]
[316406515,1709470242558,-843.47,0.00023999,2]
[316406517,1709470242569,-843.47,0.00023999,2]
[316406519,1709470242581,-843.47,0.00023999,2]
[316406521,1709470242590,-843.47,0.00023999,2]
[316406523,1709470242599,-843.47,0.00023999,2]
[316406525,1709470242608,-843.47,0.00023999,2]
[316406527,1709470242619,-843.47,0.00023999,2]
[316406529,1709470242629,-843.47,0.00023999,2]
[316406531,1709470242639,-843.47,0.00023999,2]
[316406533,1709470242648,-500.0,0.00023999,2]
[316406535,1709470242657,-501.98601745,0.00023999,2]
[316406536,1709470242666,-2239.02,0.00023999,2]
[316406538,1709470242675,-2239.02,0.00023999,2]
[316406540,1709470242684,-2239.02,0.00023999,2]
[316406542,1709470242693,-2239.02,0.00023999,2]
[316406544,1709470242704,-2239.02,0.00023999,2]
[316406546,1709470242712,-2239.02,0.00023999,2]
[316406548,1709470242721,-2239.02,0.00023999,2]
[316406550,1709470242730,-2239.02,0.00023999,2]
[316406552,1709470242740,-2239.02,0.00023999,2]
[316406554,1709470242748,-2239.02,0.00023999,2]
[316406556,1709470242758,-2239.02,0.00023999,2]
[316406558,1709470242767,-2239.02,0.00023999,2]
[316406559,1709470242776,-2239.02,0.00023999,2]
[316406561,1709470242786,-2239.19573637,0.00023999,2]
[316406563,1709470242795,-347693.16863415,0.00024,5]
[316406565,1709470242804,-175.5,0.00024,2]
[316406567,1709470242814,-375263.7927126,0.00024,5]
[316406624,1709470243219,-154.95351395,0.00019684,2]
[316406626,1709470243229,-154.95351395,0.00019684,2]
[316406628,1709470243238,-730.0,0.00023899,2]
[316406630,1709470243247,-501.39152937,0.00023899,2]
[316406632,1709470243256,-730.0,0.00023899,2]
[316406634,1709470243266,-810.35,0.00023996,2]
[316406636,1709470243275,-810.35,0.00023997,2]
[316406638,1709470243284,-810.35,0.00023997,2]
[316406640,1709470243294,-810.35,0.00023998,2]
[316406643,1709470243303,-810.35,0.00023998,2]
[316406645,1709470243314,-810.35,0.00023998,2]
[316406647,1709470243324,-810.35,0.00023998,2]
[316406649,1709470243334,-810.35,0.00023999,2]
[316406651,1709470243343,-810.35,0.00023999,2]
[316406653,1709470243352,-810.35,0.00023999,2]
[316406655,1709470243361,-810.35,0.00023999,2]
[316406657,1709470243370,-810.35,0.00023999,2]
[316406659,1709470243379,-708782.71537548,0.00024,5]
[316406661,1709470243391,-3007.76523251,0.00024,5]
[316406663,1709470243403,-6420.5063515,0.00024,5]
[316406665,1709470243415,-2000.345405,0.00024,5]
[316406667,1709470243427,-629.46,0.00024,5]
[316406694,1709470243703,-500.0,0.00022893,2]
[316406696,1709470243712,-500.0,0.00022893,2]
[316406698,1709470243723,-730.0,0.00023899,2]
[316406700,1709470243732,-500.0,0.00023899,2]
[316406702,1709470243741,-500.0,0.00023899,2]
[316406704,1709470243750,-500.74832714,0.00023899,2]
[316406706,1709470243759,-500.0,0.00023899,2]
[316406708,1709470243769,-730.0,0.00023969,2]
[316406710,1709470243778,-500.0,0.00023995,2]
[316406712,1709470243787,-500.0,0.00023996,2]
[316406714,1709470243796,-730.0,0.00023997,2]
[316406716,1709470243805,-730.0,0.00023998,2]
[316406718,1709470243815,-730.0,0.00023998,2]
[316406719,1709470243824,-730.0,0.00023998,2]
[316406721,1709470243833,-810.35,0.00023999,2]
[316406723,1709470243841,-810.35,0.00023999,2]
[316406725,1709470243851,-810.35,0.00023999,2]
[316406727,1709470243860,-810.35,0.00023999,2]
[316406729,1709470243869,-810.35,0.00023999,2]
[316406731,1709470243878,-810.35,0.00023999,2]
[316406733,1709470243887,-730.0,0.00023999,2]
[316406735,1709470243896,-810.35,0.00023999,2]
[316406737,1709470243905,-730.0,0.00023999,2]
[316406739,1709470243914,-810.35,0.00023999,2]
[316406741,1709470243923,-810.52,0.00023999,2]
[316406743,1709470243932,-12233.90680124,0.00024,5]
[316406745,1709470243944,-2156.93101842,0.00024,5]
[316406773,1709470244195,-255.99999998,0.00022893,2]
[316406775,1709470244208,-244.45926,0.00022893,2]
[316406777,1709470244218,-634.9,0.00023899,2]
[316406779,1709470244227,-35.64074,0.00023899,2]
[316406781,1709470244238,-599.25926,0.00023899,2]
[316406783,1709470244247,-590.21282607,0.00023899,2]
[316406785,1709470244257,-634.9,0.00023996,2]
[316406787,1709470244266,-730.0,0.00023999,2]
[316406789,1709470244275,-730.0,0.00023999,2]
[316406791,1709470244284,-730.0,0.00023999,2]
[316406793,1709470244292,-455.74485561,0.00023999,2]
[316406795,1709470244304,-274.25514439,0.00023999,2]
[316406797,1709470244313,-19.01005937,0.00023999,2]
[316406799,1709470244324,-710.98994063,0.00023999,2]
[316406801,1709470244334,-730.0,0.00023999,2]
[316406803,1709470244343,-730.0,0.00023999,2]
[316406805,1709470244352,-60645.77552508,0.00024,5]
[316406809,1709470244374,-634.9,0.00023996,2]
[316406810,1709470244383,-8742.92432465,0.00024,5]
[316407039,1709470246720,-1099.03582944,0.00022554,2]
[316407041,1709470246730,-500.0,0.00023899,2]
[316407043,1709470246739,-500.0,0.00023899,2]
[316407045,1709470246748,-6525.82568013,0.000239,2]
[316407047,1709470246757,-500.0,0.00023996,2]
[316407049,1709470246767,-500.0,0.00023996,2]
[316407051,1709470246776,-634.9,0.00023997,2]
[316407053,1709470246785,-634.9,0.00023997,2]
[316407055,1709470246795,-500.0,0.00023997,2]
[316407057,1709470246804,-500.0,0.00023997,2]
[316407059,1709470246813,-634.9,0.00023998,2]
[316407061,1709470246823,-634.9,0.00023998,2]
[316407063,1709470246832,-634.9,0.00023998,2]
[316407065,1709470246841,-634.9,0.00023998,2]
[316407067,1709470246850,-538.54259214,0.00023998,2]
[316407069,1709470246858,-500.0,0.00023998,2]
[316407071,1709470246867,-500.0,0.00023998,2]
[316407073,1709470246877,-730.0,0.00023999,2]
[316407075,1709470246886,-730.0,0.00023999,2]
[316407077,1709470246895,-730.0,0.00023999,2]
[316407079,1709470246904,-730.0,0.00023999,2]
[316407080,1709470246913,-730.0,0.00023999,2]
[316407082,1709470246922,-730.0,0.00023999,2]
[316407084,1709470246931,-634.9,0.00023999,2]
[316407086,1709470246940,-730.15490495,0.00023999,2]
[316407088,1709470246949,-634.9,0.00023999,2]
[316407091,1709470246961,-634.9,0.00023999,2]
[316407093,1709470246970,-155506.87764175,0.00024,5]
[316407095,1709470246981,-769.88938649,0.00024,5]
[316407130,1709470247302,-8741.63415892,0.00024,5]
[316407135,1709470247341,-738.46276103,0.00024,5]
[316407138,1709470247352,-130247.34514464,0.00024,5]
[316408577,1709470339000,-153.0,0.00021618,2]
[316408578,1709470407153,-20.222023,0.00021618,2]
[316408579,1709470407174,-479.777977,0.00021618,2]
[316408591,1709470454634,156.22617814,0.00017999,2]
[316408593,1709470473992,160.0,0.0001968,10]
[316408596,1709470539149,-960.65013533,0.0001968,10]
[316408597,1709470539171,-154.95351395,0.0001968,2]
[316408598,1709470539192,-154.95351395,0.0001968,2]
[316408599,1709470539213,-686.08024275,0.0001968,2]
[316408600,1709470539234,-154.95351395,0.0001968,2]
[316408601,1709470539253,-154.95351395,0.0001968,2]
[316408602,1709470539276,-2112.65250329,0.00020538,2]
[316408603,1709470539297,-154.95351395,0.00020538,2]
[316408604,1709470539317,-538.54259214,0.00020538,2]
[316408605,1709470539337,-2595.08936365,0.00020538,2]
[316408606,1709470539357,-290.1781689,0.00020539,2]
[316408607,1709470539378,-1604.8167343,0.00020539,2]
[316408608,1709470539398,-154.95351395,0.00020539,2]
[316408609,1709470539419,-13843.955145,0.00020539,2]
[316408610,1709470539441,-774.7136715,0.0002054,2]
[316408611,1709470539462,-744.94284367,0.0002054,2]
[316408612,1709470539482,-211.65751577,0.0002054,2]
[316408617,1709470613367,-184.5743335,0.00019677,2]
[316408618,1709470613389,-528.02051337,0.00019679,2]
[316408619,1709470613410,-282.12431908,0.0001968,2]
[316408620,1709470613431,-211.67486269,0.0001968,2]
[316408621,1709470613452,-154.95351395,0.0002054,2]
[316408622,1709470613472,-154.95351395,0.0002054,2]
[316408623,1709470613495,-154.95351395,0.0002054,2]
[316408624,1709470613515,-151.74542951,0.0002054,2]
[316408639,1709470806104,-164.232122,0.00019572,2]
[316408640,1709470806127,-1362.14903815,0.0001958,2]
[316408641,1709470806148,-557.72315857,0.00019967,2]
[316408642,1709470806171,-290.1781689,0.00019967,2]
[316408643,1709470806193,-594.4975084,0.00019968,2]
[316408644,1709470806217,-13843.955145,0.00020538,2]
[316408645,1709470806238,-1201.26485898,0.00020539,2]
[316408660,1709471321779,10046.7427503,0.00018806,2]
[316408688,1709471410422,1580.22320787,0.00018806,2]
[316408689,1709471411735,154.98450155,0.00018806,2]
[316408690,1709471425682,154.98450155,0.00018806,2]
[316408691,1709471426225,1316.85267322,0.00018806,2]
[316408722,1709471431792,-154.9690062,0.00018889,2]
[316408725,1709471431802,-428.72125377,0.0001889,2]
[316408727,1709471431811,-155.77454504,0.00018891,2]
[316408729,1709471431821,-393.15396595,0.000189,2]
[316408730,1709471431830,-261.305087,0.00018966,2]
[316408731,1709471431839,-166.666666,0.00019178,2]
[316408732,1709471431848,-645.59472625,0.00019392,2]
[316408734,1709471431857,-400.3748054,0.00019394,2]
[316408736,1709471431867,-161.03438735,0.00019574,2]
[316408737,1709471431911,-15078.6615879,0.00019574,2]
[316408738,1709471431920,-1017.37984235,0.00019575,2]
[316408739,1709471431929,-166.666666,0.00019653,2]
[316408740,1709471431938,-160.4197223,0.00019922,2]
[316408741,1709471431947,-166.666666,0.00020128,2]
[316408742,1709471431957,-178.31464165,0.0002031,2]
[316408743,1709471431966,-190.12674303,0.00020539,2]
[316408744,1709471431975,-217.58370749,0.0002054,2]
[316408745,1709471431984,-194.19166934,0.0002054,2]
[316408746,1709471431994,-166.666666,0.00020604,2]
[316408747,1709471432003,-166.666666,0.00021079,2]
[316408748,1709471432013,-178.31464164,0.00021507,2]
[316408749,1709471432022,-166.666666,0.00021554,2]
[316408750,1709471432031,-626.68499714,0.00021647,2]
[316408751,1709471432041,-500.0,0.00021893,2]
[316408752,1709471432050,-500.0,0.00021893,2]
[316408753,1709471432059,-500.0,0.00021893,2]
[316408754,1709471432068,-500.0,0.00021893,2]
[316408755,1709471432077,-500.0,0.00021893,2]
[316408756,1709471432086,-500.0,0.00021893,2]
[316408757,1709471432095,-500.0,0.00021893,2]
[316408758,1709471432104,-500.0,0.00021893,2]
[316408759,1709471432113,-500.0,0.00021893,2]
[316408760,1709471432122,-269.78614597,0.00021893,2]
[316408761,1709471432131,-500.0,0.00021893,2]
[316408762,1709471432140,-500.0,0.00021893,2]
[316408763,1709471432149,-500.0,0.00021893,2]
[316408764,1709471432158,-500.0,0.00021893,2]
[316408765,1709471432167,-500.0,0.00021894,2]
[316408766,1709471432177,-500.0,0.00021894,2]
[316408767,1709471432186,-500.0,0.00021894,2]
[316408768,1709471432194,-500.0,0.00021894,2]
[316408769,1709471432203,-500.0,0.00021894,2]
[316408770,1709471432212,-500.0,0.00021894,2]
[316408771,1709471432222,-500.0,0.00021894,2]
[316408772,1709471432230,-500.0,0.00021894,2]
[316408773,1709471432239,-500.0,0.00021894,2]
[316408774,1709471432248,-500.0,0.00021894,2]
[316408775,1709471432257,-500.0,0.00021894,2]
[316408776,1709471432266,-500.0,0.00021894,2]
[316408777,1709471432275,-500.0,0.00021894,2]
[316408778,1709471432284,-500.60548124,0.00021894,2]
[316408779,1709471432293,-500.0,0.00021894,2]
[316408780,1709471432302,-500.0,0.00021894,2]
[316408781,1709471432311,-500.0,0.00021894,2]
[316408782,1709471432319,-500.0,0.00021894,2]
[316408783,1709471432328,-500.0,0.00021894,2]
[316408784,1709471432337,-378.9263986,0.00021894,2]
[316408785,1709471432347,-500.0,0.00021894,2]
[316408786,1709471432356,-175.28411933,0.00021894,2]
[316408787,1709471432365,-500.0,0.00021894,2]
[316408788,1709471432374,-500.0,0.00021894,2]
[316408789,1709471432383,-500.0,0.00021894,2]
[316408790,1709471432392,-354.29,0.00021894,2]
[316408791,1709471432401,-500.0,0.00021894,2]
[316408792,1709471432410,-500.0,0.00021894,2]
[316408793,1709471432419,-500.0,0.00021894,2]
[316408794,1709471432428,-500.0,0.00021894,2]
[316408795,1709471432437,-500.0,0.00021894,2]
[316408796,1709471432446,-500.0,0.00021894,2]
[316408797,1709471432455,-955.37,0.00021894,2]
[316408798,1709471432464,-500.0,0.00021894,2]
[316408799,1709471432473,-500.0,0.00021894,2]
[316408800,1709471432482,-500.0,0.00021894,2]
[316408801,1709471432492,-500.0,0.00021894,2]
[316408802,1709471432501,-500.0,0.00021894,2]
[316408803,1709471432510,-500.0,0.00021894,2]
[316408804,1709471432520,-501.22064483,0.00021894,2]
[316408805,1709471432529,-500.0,0.00021894,2]
[316408806,1709471432538,-510.33815903,0.00021894,2]
[316408807,1709471432548,-502.96257843,0.00021894,2]
[316408808,1709471432558,-500.60119006,0.00021894,2]
[316408809,1709471432567,-573.7220741,0.00021894,2]
[316408810,1709471432576,-500.0,0.00021894,2]
[316408811,1709471432586,-500.0,0.00021894,2]
[316408812,1709471432595,-500.0,0.00021894,2]
[316408813,1709471432604,-533.12,0.00021894,2]
[316408814,1709471432614,-500.0,0.00021894,2]
[316408815,1709471432623,-500.27462129,0.00021894,2]
[316408816,1709471432633,-500.0,0.00021894,2]
[316408817,1709471432642,-500.0,0.00021894,2]
[316408818,1709471432651,-500.0,0.00021894,2]
[316408819,1709471432661,-500.0,0.00021894,2]
[316408820,1709471432670,-500.0,0.00021894,2]
[316408821,1709471432679,-500.0,0.00021894,2]
[316408822,1709471432688,-500.0,0.00021894,2]
[316408823,1709471432698,-500.0,0.00021894,2]
[316408824,1709471432707,-500.0,0.00021894,2]
[316408825,1709471432716,-500.0,0.00021894,2]
[316408826,1709471432726,-500.0,0.00021894,2]
[316408827,1709471432735,-500.0,0.00021894,2]
[316408828,1709471432746,-205.9886245,0.00021894,2]
[316408829,1709471432755,-599.81235075,0.00021894,2]
[316408830,1709471432764,-500.0,0.00021894,2]
[316408831,1709471432774,-500.0,0.00021894,2]
[316408832,1709471432783,-1218.91173492,0.00021895,2]
[316408833,1709471432793,-500.0,0.00021895,2]
[316408834,1709471432802,-500.0,0.00021895,2]
[316408835,1709471432811,-1427.52,0.00021895,2]
[316408836,1709471432821,-616.06288217,0.00022554,2]
[316408837,1709471432830,-178.31464164,0.00022703,2]
[316408838,1709471432840,-620.33424986,0.00022729,2]
[316408839,1709471432849,-498.99,0.00022882,3]
[316408840,1709471432860,-498.99,0.00022882,3]
[316408841,1709471432873,-500.0,0.00022891,2]
[316408842,1709471432883,-500.0,0.00022891,2]
[316408843,1709471432892,-500.0,0.00022891,2]
[316408844,1709471432902,-500.0,0.00022891,2]
[316408845,1709471432911,-500.0,0.00022891,2]
[316408846,1709471432921,-500.0,0.00022891,2]
[316408847,1709471432930,-500.0,0.00022891,2]
[316408848,1709471432939,-500.0,0.00022891,2]
[316408849,1709471432950,-500.0,0.00022891,2]
[316408850,1709471432962,-500.0,0.00022891,2]
[316408851,1709471432971,-898.49,0.00022891,2]
[316408852,1709471432980,-898.49,0.00022891,2]
[316408853,1709471432991,-898.49,0.00022891,2]
[316408854,1709471433000,-898.49,0.00022891,2]
[316408855,1709471433009,-898.49,0.00022891,2]
[316408856,1709471433018,-898.49,0.00022891,2]
[316408857,1709471433027,-898.49,0.00022891,2]
[316408858,1709471433037,-898.49,0.00022891,2]
[316408859,1709471433046,-500.0,0.00022892,2]
[316408860,1709471433055,-500.0,0.00022892,2]
[316408861,1709471433065,-501.41879076,0.00022892,2]
[316408862,1709471433074,-500.0,0.00022892,2]
[316408863,1709471433083,-500.0,0.00022892,2]
[316408864,1709471433092,-504.63502788,0.00022892,2]
[316408865,1709471433100,-500.0,0.00022892,2]
[316408866,1709471433109,-500.0,0.00022892,2]
[316408867,1709471433118,-500.0,0.00022892,2]
[316408868,1709471433127,-500.0,0.00022892,2]
[316408869,1709471433136,-500.0,0.00022892,2]
[316408870,1709471433145,-500.0,0.00022892,2]
[316408871,1709471433154,-500.0,0.00022892,2]
[316408872,1709471433163,-478.59361642,0.00022892,2]
[316408873,1709471433171,-500.0,0.00022892,2]
[316408874,1709471433181,-429.96096569,0.00022892,2]
[316408875,1709471433190,-500.0,0.00022892,2]
[316408876,1709471433199,-269.90629916,0.00022892,2]
[316408877,1709471433208,-256.60633487,0.00022892,2]
[316408878,1709471433217,-497.29050894,0.00022892,2]
[316408879,1709471433226,-500.0,0.00022892,2]
[316408880,1709471433235,-500.0,0.00022892,2]
[316408881,1709471433246,-500.0,0.00022892,2]
[316408882,1709471433255,-500.0,0.00022892,2]
[316408883,1709471433265,-500.97917017,0.00022892,2]
[316408884,1709471433277,-500.0,0.00022892,2]
[316408885,1709471433286,-500.0,0.00022892,2]
[316408886,1709471433295,-524.12697976,0.00022892,2]
[316408887,1709471433304,-500.0,0.00022892,2]
[316408888,1709471433316,-500.0,0.00022892,2]
[316408889,1709471433326,-500.0,0.00022892,2]
[316408890,1709471433335,-500.0,0.00022892,2]
[316408891,1709471433345,-500.45565824,0.00022892,2]
[316408892,1709471433355,-500.0,0.00022892,2]
[316408893,1709471433364,-500.0,0.00022892,2]
[316408894,1709471433374,-500.0,0.00022892,2]
[316408895,1709471433383,-500.0,0.00022892,2]
[316408896,1709471433392,-500.0,0.00022892,2]
[316408897,1709471433401,-500.0,0.00022892,2]
[316408898,1709471433411,-500.0,0.00022892,2]
[316408899,1709471433420,-500.0,0.00022892,2]
[316408900,1709471433430,-500.0,0.00022892,2]
[316408901,1709471433439,-500.53468107,0.00022892,2]
[316408902,1709471433448,-500.0,0.00022892,2]
[316408903,1709471433458,-500.0,0.00022892,2]
[316408904,1709471433467,-500.0,0.00022892,2]
[316408905,1709471433476,-500.0,0.00022892,2]
[316408906,1709471433485,-500.0,0.00022892,2]
[316408907,1709471433495,-500.0,0.00022892,2]
[316408908,1709471433504,-500.0,0.00022892,2]
[316408909,1709471433513,-462.08600055,0.00022892,2]
[316408938,1709471437854,-501.976449,0.00021893,2]
[316408939,1709471437863,-500.0,0.00021894,2]
[316408940,1709471437873,-500.0,0.00021894,2]
[316408941,1709471437885,-37.91399945,0.00022892,2]
[316408942,1709471437894,-566.16513416,0.00022892,2]
[316408943,1709471437903,-955.37,0.00022892,2]
[316408944,1709471437913,-500.0,0.00022892,2]
[316408945,1709471437922,-500.0,0.00022892,2]
[316408946,1709471437931,-500.34077657,0.00022892,2]
[316408947,1709471437941,-500.0,0.00022892,2]
[316408948,1709471437951,-500.0,0.00022892,2]
[316408949,1709471437960,-500.0,0.00022892,2]
[316408950,1709471437969,-500.0,0.00022892,2]
[316408951,1709471437978,-500.0,0.00022892,2]
[316408952,1709471437987,-500.0,0.00022892,2]
[316408953,1709471437996,-153.05313751,0.00022892,2]
[316408954,1709471438006,-256.4961258,0.00022892,2]
[316408955,1709471438015,-500.0,0.00022892,2]
[316408956,1709471438024,-500.0,0.00022892,2]
[316408957,1709471438033,-500.0,0.00022892,2]
[316408958,1709471438042,-501.19325545,0.00022892,2]
[316408959,1709471438051,-7.69112206,0.00022892,2]
[316408960,1709471438063,-499.64692393,0.00022892,2]
[316408961,1709471438072,-500.0,0.00022892,2]
[316408962,1709471438081,-500.0,0.00022892,2]
[316408963,1709471438090,-603.18,0.00022892,2]
[316408965,1709471438100,-500.0,0.00022892,2]
[316408966,1709471438109,-481.76820224,0.00022892,2]
[316408967,1709471438119,-500.0,0.00022892,2]
[316408968,1709471438129,-500.0,0.00022892,2]
[316408969,1709471438138,-500.0,0.00022892,2]
[316408970,1709471438147,-523.4325765,0.00022892,2]
[316408971,1709471438156,-380.88443286,0.00022892,2]
[316408972,1709471438165,-500.0,0.00022892,2]
[316408973,1709471438175,-500.0,0.00022892,2]
[316408975,1709471438185,-533.12,0.00022892,2]
[316408976,1709471438195,-506.16712789,0.00022892,2]
[316408977,1709471438204,-500.0,0.00022892,2]
[316408979,1709471438216,-500.0,0.00022892,2]
[316408981,1709471438225,-500.0,0.00022892,2]
[316408982,1709471438234,-500.0,0.00022892,2]
[316408984,1709471438243,-500.0,0.00022892,2]
[316408986,1709471438253,-500.0,0.00022892,2]
[316408988,1709471438263,-500.0,0.00022892,2]
[316408990,1709471438272,-500.0,0.00022892,2]
[316408992,1709471438281,-500.0,0.00022892,2]
[316408994,1709471438291,-500.0,0.00022892,2]
[316408996,1709471438300,-500.0,0.00022892,2]
[316408998,1709471438309,-500.0,0.00022892,2]
[316409000,1709471438318,-502.21969815,0.00022892,2]
[316409002,1709471438327,-500.0,0.00022892,2]
[316409004,1709471438337,-198.03830105,0.00022892,2]
[316409006,1709471438346,-500.0,0.00022892,2]
[316409008,1709471438356,-500.55002525,0.00022892,2]
[316409010,1709471438365,-500.0,0.00022892,2]
[316409012,1709471438375,-500.0,0.00022892,2]
[316409014,1709471438385,-500.0,0.00022892,2]
[316409016,1709471438395,-500.0,0.00022892,2]
[316409018,1709471438404,-502.28471748,0.00022892,2]
[316409020,1709471438415,-220.53734331,0.00022892,2]
[316409022,1709471438424,-500.0,0.00022892,2]
[316409024,1709471438434,-500.0,0.00022892,2]
[316409026,1709471438443,-500.0,0.00022892,2]
[316409028,1709471438453,-500.0,0.00022892,2]
[316409030,1709471438462,-500.6805688,0.00022892,2]
[316409032,1709471438471,-500.60507049,0.00022892,2]
[316409034,1709471438480,-500.0,0.00022892,2]
[316409036,1709471438490,-543.00163387,0.00022892,2]
[316409038,1709471438500,-500.0,0.00022892,2]
[316409040,1709471438509,-500.0,0.00022892,2]
[316409042,1709471438517,-500.0,0.00022892,2]
[316409044,1709471438526,-501.75676787,0.00022892,2]
[316409046,1709471438536,-516.1030061,0.00022892,2]
[316409048,1709471438545,-500.0,0.00022892,2]
[316409050,1709471438554,-313.79452953,0.00022892,2]
[316409052,1709471438563,-500.64005954,0.00022892,2]